{"text_format":"1","workbook":"xlsx","n_sheets":1,"sheets":["Z1"],"not_rendered":{"charts":0,"images":0,"macros":1,"external_links":0,"defined_names":1,"comments":0,"pivot_tables":0},"unopened":[],"bounds":{"document_bytes":16777216,"sheet_cells":100000,"rows_first":2000,"rows_last":500,"rows_between":2000,"halvings":0,"cell_chars":16384,"cell_head_chars":4096},"cells_cut":0,"cells_raw":0,"read":"whole","date_system":"1900"}

{"sheet":"Z1","index":0,"n_rows":87,"n_cols":18,"rows_kept":87,"cut":false,"hidden":false,"merged":[]}
[null,"                       Amperage:         D3: 10 mA",null,null,null,null,null,null,null,null,null,null,10,10]
["Zekeringkast Z1","D2: 30 mA",null,null,null,null,null,null,null,null,null,null,null,null,null,30,30,30]
[null,"D1: 300 mA",null,300,300,300,300,300,300,300,300]
["Plaats","Aftakking                                             Kring","D1","A","B","C","D","E","F","G","H","D2","I","J","D3","K","L","M"]
[null,"Amperage",null,6,16,16,16,16,"20A","20A","20A",null,16,"16A",null,"16A","16A","20A"]
["Living","ok"]
[null,"SC achter zetel (+ schilderijlicht)",null,null,null,{"$f":"F$4&COUNTA(F$6:F6)+1","v":"C1"}]
[null,"SC achter TV",null,null,null,null,null,null,null,null,null,null,null,{"$f":"N$4&COUNTA(N$6:N7)+1","v":"J1"}]
[null,"SC naast haard",null,null,null,{"$f":"F$4&COUNTA(F$6:F8)+1","v":"C2"}]
[null,"Groot licht",null,null,null,null,null,{"$f":"H$4&COUNTA(H$6:H9)+1","v":"E1"}]
[null,"Rolluiken",null,null,null,null,null,null,null,null,null,null,null,{"$f":"N$4&COUNTA(N$6:N10)+1","v":"J2"}]
["Eetkamer","ok"]
[null,"Groot licht",null,null,null,null,null,{"$f":"H$4&COUNTA(H$6:H12)+1","v":"E2"}]
[null,"SC hoek naast veranda",null,null,null,{"$f":"F$4&COUNTA(F$6:F13)+1","v":"C3"}]
["Keuken","ok"]
[null,"Groot licht",null,null,null,null,{"$f":"G$4&COUNTA(G$6:G15)+1","v":"D1"}]
[null,"Licht boven tafel",null,null,null,null,null,{"$f":"H$4&COUNTA(H$6:H16)+1","v":"E3"}]
[null,"Licht boven gootsteen",null,null,null,null,null,null,null,null,null,null,{"$f":"M$4&COUNTA(M$6:M17)+1","v":"I1"}]
[null,"Dampkap",null,null,null,null,null,null,null,null,null,null,null,null,null,{"$f":"P$4&COUNTA(P$6:P18)+1","v":"K1"}]
[null,"Koelkast",null,null,null,null,null,null,null,null,null,null,null,null,null,{"$f":"P$4&COUNTA(P$6:P19)+1","v":"K2"}]
[null,"Oven",null,null,null,null,null,null,null,null,null,null,null,null,null,{"$f":"P$4&COUNTA(P$6:P20)+1","v":"K3"}]
[null,"Parlofoon voordeur",null,null,null,null,null,null,null,null,null,null,null,null,null,{"$f":"P$4&COUNTA(P$6:P21)+1","v":"K4"}]
[null,"SC naast fornuis",null,null,null,null,null,null,null,null,null,null,null,null,null,{"$f":"P$4&COUNTA(P$6:P22)+1","v":"K5"}]
[null,"SC naast gootsteen",null,null,null,null,null,null,null,null,null,null,null,null,null,{"$f":"P$4&COUNTA(P$6:P23)+1","v":"K6"}]
[null,"SC onder parlofoon",null,null,null,null,null,null,null,null,null,null,null,null,null,{"$f":"P$4&COUNTA(P$6:P24)+1","v":"K7"}]
[null,"SC onder schakelaar groot licht",null,null,null,null,null,null,null,null,null,null,null,null,null,{"$f":"P$4&COUNTA(P$6:P25)+1","v":"K8"}]
["Veranda","ok"]
[null,"4 spotjes (vanuit keuken)",null,null,null,{"$f":"F$4&COUNTA(F$6:F27)+1","v":"C4"}]
[null,"Luifel (vanuit keuken)",null,null,null,{"$f":"F$4&COUNTA(F$6:F28)+1","v":"C5"}]
[null,"SC hoek naast keuken",null,null,null,{"$f":"F$4&COUNTA(F$6:F29)+1","v":"C6"}]
[null,"SC hoek verste van keuken",null,null,null,{"$f":"F$4&COUNTA(F$6:F30)+1","v":"C7"}]
["Tuinhok + vijver","ok"]
[null,"Installaties en licht",null,null,null,null,null,null,null,null,null,null,{"$f":"M$4&COUNTA(M$6:M32)+1","v":"I2"}]
["Berging","ok"]
[null,"SC voor diepvries",null,null,null,null,null,null,null,null,null,null,{"$f":"M$4&COUNTA(M$6:M34)+1","v":"I3"}]
[null,"SC voor microgolfoven",null,null,null,null,null,null,null,null,null,null,{"$f":"M$4&COUNTA(M$6:M35)+1","v":"I4"}]
[null,"SC bij schakelaars",null,null,null,null,null,null,null,null,null,null,{"$f":"M$4&COUNTA(M$6:M36)+1","v":"I5"}]
[null,"Licht",null,null,null,null,null,null,null,null,null,null,{"$f":"M$4&COUNTA(M$6:M37)+1","v":"I6"}]
["Hall","ok"]
[null,"Licht naast spiegel",null,null,null,null,{"$f":"G$4&COUNTA(G$6:G39)+1","v":"D2"}]
["Trap","ok"]
[null,"Lichtjes",null,{"$f":"D$4&COUNTA(D$6:D41)+1","v":"A1"}]
["WC beneden","ok"]
[null,"Licht",null,null,null,null,null,null,null,null,null,null,null,null,null,null,{"$f":"Q$4&COUNTA(Q$6:Q43)+1","v":"L1"}]
["Kelder","niet ok"]
[null,"Licht naar kelder, in kelder en opzij",null,null,null,null,{"$f":"G$4&COUNTA(G$6:G45)+1","v":"D3"}]
[null,"Gasketel Buderus",null,null,null,null,null,null,null,null,null,null,null,null,null,{"$f":"P$4&COUNTA(P$6:P46)+1","v":"K9"}]
[null,"SC naast gas",null,null,null,null,null,null,null,null,null,null,null,null,null,{"$f":"P$4&COUNTA(P$6:P47)+1","v":"K10"}]
["Overloop","ok"]
[null,"Licht",null,null,null,null,{"$f":"G$4&COUNTA(G$6:G49)+1","v":"D4"}]
["Badkamer","ok"]
[null,"Licht naast spiegel",null,null,null,null,null,null,null,null,null,null,null,null,null,null,{"$f":"Q$4&COUNTA(Q$6:Q51)+1","v":"L2"}]
[null,"Spotjes",null,null,null,null,null,null,null,null,null,null,null,null,null,null,{"$f":"Q$4&COUNTA(Q$6:Q52)+1","v":"L3"}]
[null,"Blauw licht",null,null,null,null,null,null,null,null,null,null,null,null,null,null,{"$f":"Q$4&COUNTA(Q$6:Q53)+1","v":"L4"}]
[null,"2 SC naast gootsteen"]
["Slaapkamer 1","ok"]
[null,"SC 1",null,null,null,{"$f":"F$4&COUNTA(F$6:F56)+1","v":"C8"}]
[null,"SC 2",null,null,null,{"$f":"F$4&COUNTA(F$6:F57)+1","v":"C9"}]
[null,"SC 3",null,null,null,{"$f":"F$4&COUNTA(F$6:F58)+1","v":"C10"}]
[null,"SC 4",null,null,null,{"$f":"F$4&COUNTA(F$6:F59)+1","v":"C11"}]
[null,"Rolluiken",null,null,null,{"$f":"F$4&COUNTA(F$6:F60)+1","v":"C12"}]
[null,"Licht",null,null,null,null,null,null,null,null,null,null,null,null,null,null,{"$f":"Q$4&COUNTA(Q$6:Q61)+1","v":"L5"}]
["Slaapkamer 2","ok"]
[null,"SC verste hoek"]
[null,"Rolluiken"]
[null,"Licht",null,null,null,null,null,null,null,null,null,null,null,null,null,null,{"$f":"Q$4&COUNTA(Q$6:Q65)+1","v":"L6"}]
["Kantoor","ok"]
[null,"Licht",null,null,null,null,null,null,null,null,null,null,null,null,null,null,{"$f":"Q$4&COUNTA(Q$6:Q67)+1","v":"L7"}]
[null,"SC onder schakelaar",null,null,null,{"$f":"F$4&COUNTA(F$6:F68)+1","v":"C13"}]
[null,"SC naast raam",null,null,null,{"$f":"F$4&COUNTA(F$6:F69)+1","v":"C14"}]
["Voortuin","niet ok"]
[null,"Spotjes in stenen en sensor"]
[null,"Bel en spotjes aan voordeur",null,{"$f":"D$4&COUNTA(D$6:D72)+1","v":"A2"}]
["Opmerkingen","niet ok"]
[null,"Domino- of 4 koppige stekkers"]
[null,"Boiler checken"]
[null,"Wasmachine + droogkast"]
[null,"Teveel aangesloten op C"]
[null,"2de licht dampkap"]
[null,"Dag/nachttarief"]
[null,"Ontbrekend:"]
[null," - Voor voordeur (niet gecheckt)"]
[null," - Thermostaat (niet gecheckt)"]
[null," - Boiler (niet gecheckt)"]
[null,"Aantal aftakkingen per kring",null,{"$f":"COUNTA(D6:D84)","v":2},0,14,4,3,0,0,0,null,{"$f":"COUNTA(M6:M84)","v":6},{"$f":"COUNTA(N6:N84)","v":2},null,{"$f":"COUNTA(P6:P84)","v":10},{"$f":"COUNTA(Q6:Q84)","v":7},{"$f":"COUNTA(R6:R84)","v":0}]
["Legende","ok"]
[null,"SC = stopcontact"]